[Event "December 19 Early 2023"]
[Site "https://www.chess.com"]
[Date "2023.12.19"]
[Round "2"]
[White "Feuerstack, Aljoscha"]
[Black "Szyszylo, Rafal"]
[Result "1-0"]
[Board "146"]
[TimeControl "180+1"]
[WhiteFideId "4681932"]
[BlackFideId "1109626"]
[WhiteElo "2418"]
[BlackElo "1951"]
[WhiteTeam "GER"]
[BlackTeam "POL"]
[WhiteClock "0:00:18"]
[BlackClock "0:00:00"]

1. e4 {[%clk 0:03:00]}  d6 {[%clk 0:02:59]} 2. Nf3 {[%clk 0:02:55]}  Nf6 {[%clk 0:02:59]} 3. d3 {[%clk 0:02:54]}  g6 {[%clk 0:02:59]} 4. g3 {[%clk 0:02:54]}  e5 {[%clk 0:02:59]} 5. Bg2 {[%clk 0:02:54]}  Nc6 {[%clk 0:02:59]} 6. O-O {[%clk 0:02:54]}  Bg7 {[%clk 0:03:00]} 7. Re1 {[%clk 0:02:54]}  O-O {[%clk 0:03:00]} 8. c3 {[%clk 0:02:51]}  h6 {[%clk 0:03:00]} 9. Be3 {[%clk 0:02:46]}  Bg4 {[%clk 0:03:00]} 10. Nbd2 {[%clk 0:02:44]}  Nh7 {[%clk 0:02:48]} 11. Qc1 {[%clk 0:02:32]}  g5 {[%clk 0:02:46]} 12. b4 {[%clk 0:02:21]}  Ne7 {[%clk 0:02:45]} 13. h4 {[%clk 0:02:18]}  Ng6 {[%clk 0:02:37]} 14. hxg5 {[%clk 0:02:12]}  Nxg5 {[%clk 0:02:37]} 15. Nxg5 {[%clk 0:01:40]}  hxg5 {[%clk 0:02:38]} 16. Nc4 {[%clk 0:01:37]}  Bf6 {[%clk 0:02:26]} 17. Bd2 {[%clk 0:01:35]}  Qd7 {[%clk 0:02:19]} 18. Ne3 {[%clk 0:01:33]}  Be6 {[%clk 0:02:18]} 19. Bf3 {[%clk 0:01:26]}  g4 {[%clk 0:02:09]} 20. Be2 {[%clk 0:01:26]}  Kg7 {[%clk 0:02:06]} 21. Qd1 {[%clk 0:01:25]}  Bg5 {[%clk 0:01:42]} 22. Nf5+ {[%clk 0:01:20]}  Bxf5 {[%clk 0:01:41]} 23. exf5 {[%clk 0:01:21]}  Bxd2 {[%clk 0:01:40]} 24. Bxg4 {[%clk 0:01:21]}  Qc6 {[%clk 0:00:55]} 25. Qxd2 {[%clk 0:01:16]}  Rh8 {[%clk 0:00:54]} 26. f3 {[%clk 0:01:03]}  Ne7 {[%clk 0:00:46]} 27. d4 {[%clk 0:00:56]}  f6 {[%clk 0:00:44]} 28. Kg2 {[%clk 0:00:37]}  Nd5 {[%clk 0:00:38]} 29. Rac1 {[%clk 0:00:37]}  b5 {[%clk 0:00:30]} 30. Red1 {[%clk 0:00:34]}  Nb6 {[%clk 0:00:25]} 31. Rh1 {[%clk 0:00:28]}  Nc4 {[%clk 0:00:23]} 32. Qf2 {[%clk 0:00:27]}  e4 {[%clk 0:00:13]} 33. Rxh8 {[%clk 0:00:22]}  Rxh8 {[%clk 0:00:12]} 34. fxe4 {[%clk 0:00:20]}  Qxe4+ {[%clk 0:00:13]} 35. Bf3 {[%clk 0:00:21]}  Ne3+ {[%clk 0:00:12]} 36. Kg1 {[%clk 0:00:21]}  Qd3 {[%clk 0:00:07]} 37. Qe2 {[%clk 0:00:21]}  Qxe2 {[%clk 0:00:05]} 38. Bxe2 {[%clk 0:00:22]}  Nxf5 {[%clk 0:00:05]} 39. Bxb5 {[%clk 0:00:17]}  Nxg3 {[%clk 0:00:05]} 40. Kg2 {[%clk 0:00:18]}  Ne4 {[%clk 0:00:05]} 41. Bd3 {[%clk 0:00:18]}  Ng5 {[%clk 0:00:02]} 42. Re1 {[%clk 0:00:19]}  Kf7 {[%clk 0:00:02]} 43. Bc4+ {[%clk 0:00:18]}  Kg6 {[%clk 0:00:00]} 44. Re7 {[%clk 0:00:18]} 1-0

[Event "December 19 Early 2023"]
[Site "https://www.chess.com"]
[Date "2023.12.19"]
[Round "2"]
[White "Aaditya Dhingra"]
[Black "Topalov, Aleksandar"]
[Result "1-0"]
[Board "147"]
[TimeControl "180+1"]
[WhiteFideId "25678191"]
[BlackFideId "925659"]
[WhiteElo "2269"]
[BlackElo "2151"]
[WhiteTeam "IND"]
[BlackTeam "SRB"]
[WhiteClock "0:01:42"]
[BlackClock "0:01:43"]

1. d4 {[%clk 0:03:00]}  Nf6 {[%clk 0:02:59]} 2. c4 {[%clk 0:03:00]}  c5 {[%clk 0:02:59]} 3. Nf3 {[%clk 0:02:57]}  g6 {[%clk 0:02:58]} 4. Nc3 {[%clk 0:02:55]}  Bg7 {[%clk 0:02:58]} 5. d5 {[%clk 0:02:54]}  d6 {[%clk 0:02:58]} 6. e4 {[%clk 0:02:55]}  O-O {[%clk 0:02:58]} 7. Be2 {[%clk 0:02:55]}  e6 {[%clk 0:02:58]} 8. O-O {[%clk 0:02:54]}  Re8 {[%clk 0:02:58]} 9. dxe6 {[%clk 0:02:52]}  Bxe6 {[%clk 0:02:57]} 10. Bf4 {[%clk 0:02:51]}  Bg4 {[%clk 0:02:56]} 11. h3 {[%clk 0:02:44]}  Bxf3 {[%clk 0:02:53]} 12. Bxf3 {[%clk 0:02:43]}  Nc6 {[%clk 0:02:50]} 13. Bxd6 {[%clk 0:02:26]}  Nd4 {[%clk 0:02:39]} 14. Bxc5 {[%clk 0:02:25]}  Nxf3+ {[%clk 0:02:39]} 15. Qxf3 {[%clk 0:02:24]}  Qc7 {[%clk 0:02:31]} 16. Bd4 {[%clk 0:02:09]}  Nxe4 {[%clk 0:02:14]} 17. Bxg7 {[%clk 0:01:58]}  Nd2 {[%clk 0:02:11]} 18. Qf6 {[%clk 0:01:55]}  Re6 {[%clk 0:02:10]} 19. Qd4 {[%clk 0:01:52]}  Nxf1 {[%clk 0:02:07]} 20. Rxf1 {[%clk 0:01:51]}  Rd8 {[%clk 0:02:06]} 21. Nd5 {[%clk 0:01:50]}  Qd6 {[%clk 0:01:51]} 22. Bh6 {[%clk 0:01:44]}  b5 {[%clk 0:01:43]} 23. Qg7# {[%clk 0:01:42]} 1-0

[Event "December 19 Early 2023"]
[Site "https://www.chess.com"]
[Date "2023.12.19"]
[Round "2"]
[White "Kiselev, Pavel"]
[Black "Jakubowski, Krzysztof"]
[Result "1-0"]
[Board "150"]
[TimeControl "180+1"]
[WhiteFideId "4191102"]
[BlackFideId "1112848"]
[WhiteElo "2145"]
[BlackElo "2369"]
[WhiteTeam "RUS"]
[BlackTeam "POL"]
[WhiteClock "0:00:13"]
[BlackClock "0:00:00"]

1. Nf3 {[%clk 0:03:00]}  Nf6 {[%clk 0:02:56]} 2. d4 {[%clk 0:02:58]}  e6 {[%clk 0:02:55]} 3. c4 {[%clk 0:02:58]}  b6 {[%clk 0:02:53]} 4. g3 {[%clk 0:02:57]}  Ba6 {[%clk 0:02:52]} 5. Qc2 {[%clk 0:02:56]}  c5 {[%clk 0:02:45]} 6. Bg2 {[%clk 0:02:56]}  Nc6 {[%clk 0:02:39]} 7. dxc5 {[%clk 0:02:40]}  bxc5 {[%clk 0:02:37]} 8. b3 {[%clk 0:02:33]}  Be7 {[%clk 0:02:33]} 9. O-O {[%clk 0:02:32]}  O-O {[%clk 0:02:31]} 10. Bb2 {[%clk 0:02:33]}  d5 {[%clk 0:02:30]} 11. cxd5 {[%clk 0:02:33]}  exd5 {[%clk 0:02:29]} 12. Nc3 {[%clk 0:02:32]}  d4 {[%clk 0:02:20]} 13. Ne4 {[%clk 0:02:19]}  Nxe4 {[%clk 0:02:02]} 14. Qxe4 {[%clk 0:02:20]}  Rc8 {[%clk 0:02:02]} 15. Rac1 {[%clk 0:01:59]}  Re8 {[%clk 0:02:00]} 16. Qc2 {[%clk 0:01:45]}  Nb4 {[%clk 0:01:35]} 17. Qd2 {[%clk 0:01:44]}  Nxa2 {[%clk 0:01:33]} 18. Ra1 {[%clk 0:01:43]}  Nb4 {[%clk 0:01:33]} 19. Ba3 {[%clk 0:01:37]}  Qb6 {[%clk 0:01:01]} 20. Bxb4 {[%clk 0:01:33]}  cxb4 {[%clk 0:01:02]} 21. Qxd4 {[%clk 0:01:33]}  Bc5 {[%clk 0:01:00]} 22. Qd7 {[%clk 0:01:27]}  Bb5 {[%clk 0:00:41]} 23. Qf5 {[%clk 0:01:27]}  g6 {[%clk 0:00:38]} 24. Qf4 {[%clk 0:01:21]}  Bxe2 {[%clk 0:00:37]} 25. Ng5 {[%clk 0:01:20]}  Re7 {[%clk 0:00:27]} 26. Rfe1 {[%clk 0:01:20]}  Rf8 {[%clk 0:00:22]} 27. Bd5 {[%clk 0:01:18]}  Kg7 {[%clk 0:00:17]} 28. Rxe2 {[%clk 0:01:12]}  Rxe2 {[%clk 0:00:16]} 29. Nxf7 {[%clk 0:01:13]}  g5 {[%clk 0:00:04]} 30. Qxg5+ {[%clk 0:01:12]}  Qg6 {[%clk 0:00:04]} 31. Qxg6+ {[%clk 0:00:31]}  Kxg6 {[%clk 0:00:04]} 32. Rc1 {[%clk 0:00:30]}  Bb6 {[%clk 0:00:03]} 33. Rc6+ {[%clk 0:00:29]}  Kf5 {[%clk 0:00:02]} 34. Nh6+ {[%clk 0:00:19]}  Ke5 {[%clk 0:00:02]} 35. Bc4 {[%clk 0:00:16]}  Rfxf2 {[%clk 0:00:02]} 36. Ng4+ {[%clk 0:00:17]}  Kf5 {[%clk 0:00:01]} 37. Nxf2 {[%clk 0:00:17]}  Rxf2 {[%clk 0:00:01]} 38. Kh1 {[%clk 0:00:16]}  Rb2 {[%clk 0:00:00]} 39. Rh6 {[%clk 0:00:13]} 1-0

[Event "December 19 Early 2023"]
[Site "https://www.chess.com"]
[Date "2023.12.19"]
[Round "2"]
[White "Weishaeutel, Moritz"]
[Black "Elissalt Cardenas, Hector"]
[Result "1/2-1/2"]
[Board "152"]
[TimeControl "180+1"]
[WhiteFideId "12967300"]
[BlackFideId "3500632"]
[WhiteElo "2321"]
[BlackElo "2202"]
[WhiteTeam "GER"]
[BlackTeam "ESP"]
[WhiteClock "0:00:18"]
[BlackClock "0:00:07"]

1. e4 {[%clk 0:03:00]}  d6 {[%clk 0:02:59]} 2. Nc3 {[%clk 0:02:59]}  Nf6 {[%clk 0:02:59]} 3. d4 {[%clk 0:02:59]}  e5 {[%clk 0:02:58]} 4. Nf3 {[%clk 0:02:55]}  Nbd7 {[%clk 0:02:57]} 5. Bc4 {[%clk 0:02:55]}  Be7 {[%clk 0:02:56]} 6. O-O {[%clk 0:02:56]}  O-O {[%clk 0:02:56]} 7. a4 {[%clk 0:02:56]}  c6 {[%clk 0:02:50]} 8. Re1 {[%clk 0:02:55]}  a5 {[%clk 0:02:48]} 9. b3 {[%clk 0:02:55]}  h6 {[%clk 0:02:47]} 10. Bb2 {[%clk 0:02:55]}  Nh7 {[%clk 0:02:42]} 11. Ne2 {[%clk 0:02:52]}  Ng5 {[%clk 0:02:38]} 12. Ng3 {[%clk 0:02:49]}  Nxf3+ {[%clk 0:02:29]} 13. Qxf3 {[%clk 0:02:50]}  exd4 {[%clk 0:02:23]} 14. Bxd4 {[%clk 0:02:39]}  Ne5 {[%clk 0:02:23]} 15. Bxe5 {[%clk 0:02:40]}  dxe5 {[%clk 0:02:22]} 16. Rad1 {[%clk 0:02:41]}  Qc7 {[%clk 0:02:07]} 17. Nf5 {[%clk 0:02:34]}  Bxf5 {[%clk 0:01:59]} 18. Qxf5 {[%clk 0:02:35]}  Bf6 {[%clk 0:01:44]} 19. Rd7 {[%clk 0:02:34]}  Qb6 {[%clk 0:01:30]} 20. Qg6 {[%clk 0:02:27]}  Qb4 {[%clk 0:01:18]} 21. Red1 {[%clk 0:02:22]}  Qxc4 {[%clk 0:00:59]} 22. Qxf6 {[%clk 0:02:16]}  Qxe4 {[%clk 0:00:53]} 23. Qe7 {[%clk 0:02:10]}  Rae8 {[%clk 0:00:49]} 24. Qc5 {[%clk 0:02:10]}  b6 {[%clk 0:00:34]} 25. Qxb6 {[%clk 0:02:08]}  Qxc2 {[%clk 0:00:34]} 26. g3 {[%clk 0:01:58]}  Re6 {[%clk 0:00:32]} 27. Rd8 {[%clk 0:01:49]}  Rxd8 {[%clk 0:00:26]} 28. Rxd8+ {[%clk 0:01:46]}  Kh7 {[%clk 0:00:26]} 29. Qe3 {[%clk 0:01:16]}  Qb1+ {[%clk 0:00:19]} 30. Kg2 {[%clk 0:01:16]}  Qc2 {[%clk 0:00:20]} 31. Rd2 {[%clk 0:01:15]}  Qc1 {[%clk 0:00:18]} 32. Qe4+ {[%clk 0:01:12]}  g6 {[%clk 0:00:16]} 33. Rd7 {[%clk 0:01:12]}  Kg7 {[%clk 0:00:16]} 34. Ra7 {[%clk 0:00:55]}  Qc3 {[%clk 0:00:15]} 35. Qc4 {[%clk 0:00:41]}  Qxc4 {[%clk 0:00:13]} 36. bxc4 {[%clk 0:00:42]}  e4 {[%clk 0:00:13]} 37. Rxa5 {[%clk 0:00:41]}  e3 {[%clk 0:00:13]} 38. fxe3 {[%clk 0:00:42]}  Rxe3 {[%clk 0:00:12]} 39. Rc5 {[%clk 0:00:42]}  Ra3 {[%clk 0:00:12]} 40. Rxc6 {[%clk 0:00:39]}  Rxa4 {[%clk 0:00:12]} 41. h4 {[%clk 0:00:40]}  h5 {[%clk 0:00:11]} 42. Kf3 {[%clk 0:00:40]}  Ra3+ {[%clk 0:00:12]} 43. Kf4 {[%clk 0:00:40]}  Ra1 {[%clk 0:00:12]} 44. Rc8 {[%clk 0:00:36]}  Rf1+ {[%clk 0:00:12]} 45. Ke3 {[%clk 0:00:35]}  Re1+ {[%clk 0:00:10]} 46. Kf2 {[%clk 0:00:33]}  Rc1 {[%clk 0:00:11]} 47. c5 {[%clk 0:00:34]}  Rc3 {[%clk 0:00:10]} 48. c6 {[%clk 0:00:35]}  Kf6 {[%clk 0:00:09]} 49. c7 {[%clk 0:00:04]}  Ke7 {[%clk 0:00:09]} 50. Ke2 {[%clk 0:00:05]}  Kd7 {[%clk 0:00:05]} 51. Rf8 {[%clk 0:00:04]}  Rxc7 {[%clk 0:00:04]} 52. Rxf7+ {[%clk 0:00:04]}  Kd8 {[%clk 0:00:04]} 53. Rxc7 {[%clk 0:00:05]}  Kxc7 {[%clk 0:00:03]} 54. Ke3 {[%clk 0:00:06]}  Kd6 {[%clk 0:00:04]} 55. Kf4 {[%clk 0:00:07]}  Ke6 {[%clk 0:00:04]} 56. Kg5 {[%clk 0:00:08]}  Kf7 {[%clk 0:00:04]} 57. Kh6 {[%clk 0:00:08]}  Kf6 {[%clk 0:00:05]} 58. Kh7 {[%clk 0:00:09]}  g5 {[%clk 0:00:05]} 59. Kh6 {[%clk 0:00:08]}  gxh4 {[%clk 0:00:05]} 60. gxh4 {[%clk 0:00:09]}  Kf7 {[%clk 0:00:04]} 61. Kxh5 {[%clk 0:00:10]}  Kg7 {[%clk 0:00:05]} 62. Kg5 {[%clk 0:00:11]}  Kh7 {[%clk 0:00:05]} 63. Kh5 {[%clk 0:00:12]}  Kh8 {[%clk 0:00:05]} 64. Kg5 {[%clk 0:00:13]}  Kh7 {[%clk 0:00:06]} 65. Kg4 {[%clk 0:00:14]}  Kh8 {[%clk 0:00:06]} 66. h5 {[%clk 0:00:14]}  Kh7 {[%clk 0:00:06]} 67. Kg5 {[%clk 0:00:15]}  Kh8 {[%clk 0:00:07]} 68. Kg6 {[%clk 0:00:16]}  Kg8 {[%clk 0:00:07]} 69. h6 {[%clk 0:00:17]}  Kh8 {[%clk 0:00:07]} 70. h7 {[%clk 0:00:18]} 1/2-1/2

[Event "December 19 Early 2023"]
[Site "https://www.chess.com"]
[Date "2023.12.19"]
[Round "2"]
[White "Antunez Soler, Luis"]
[Black "Pein, Jonathan"]
[Result "0-1"]
[Board "153"]
[TimeControl "180+1"]
[WhiteFideId "3513335"]
[BlackFideId "417092"]
[WhiteElo "2154"]
[BlackElo "2130"]
[WhiteTeam "CUB"]
[BlackTeam "ENG"]
[WhiteClock "0:00:19"]
[BlackClock "0:00:26"]

1. e4 {[%clk 0:03:00]}  e5 {[%clk 0:02:59]} 2. Nf3 {[%clk 0:03:00]}  d6 {[%clk 0:02:59]} 3. d4 {[%clk 0:02:59]}  exd4 {[%clk 0:03:00]} 4. Qxd4 {[%clk 0:02:59]}  Nf6 {[%clk 0:02:57]} 5. Bg5 {[%clk 0:02:59]}  Nc6 {[%clk 0:02:57]} 6. Bb5 {[%clk 0:02:56]}  Be7 {[%clk 0:02:54]} 7. Nc3 {[%clk 0:02:55]}  O-O {[%clk 0:02:54]} 8. Qd2 {[%clk 0:02:46]}  Be6 {[%clk 0:02:51]} 9. O-O-O {[%clk 0:02:45]}  a6 {[%clk 0:02:22]} 10. Bxc6 {[%clk 0:02:44]}  bxc6 {[%clk 0:02:23]} 11. Nd4 {[%clk 0:02:44]}  Bd7 {[%clk 0:02:19]} 12. f4 {[%clk 0:02:43]}  Qb8 {[%clk 0:02:19]} 13. e5 {[%clk 0:02:41]}  Nd5 {[%clk 0:02:14]} 14. Bxe7 {[%clk 0:02:05]}  Nxe7 {[%clk 0:02:11]} 15. Rhe1 {[%clk 0:02:04]}  d5 {[%clk 0:02:05]} 16. h3 {[%clk 0:01:59]}  a5 {[%clk 0:01:57]} 17. a3 {[%clk 0:01:53]}  a4 {[%clk 0:01:55]} 18. g4 {[%clk 0:01:44]}  Qb6 {[%clk 0:01:55]} 19. Na2 {[%clk 0:01:42]}  c5 {[%clk 0:01:50]} 20. Ne2 {[%clk 0:01:34]}  Rfb8 {[%clk 0:01:42]} 21. c4 {[%clk 0:01:19]}  Qb3 {[%clk 0:01:29]} 22. Nac3 {[%clk 0:01:16]}  Qxc4 {[%clk 0:01:20]} 23. Kb1 {[%clk 0:01:12]}  d4 {[%clk 0:01:13]} 24. Ne4 {[%clk 0:01:08]}  Be6 {[%clk 0:01:13]} 25. Nc1 {[%clk 0:01:09]}  Nd5 {[%clk 0:01:06]} 26. Ka1 {[%clk 0:01:01]}  Ne3 {[%clk 0:00:58]} 27. Rxe3 {[%clk 0:00:43]}  dxe3 {[%clk 0:00:59]} 28. Qxe3 {[%clk 0:00:44]}  Rxb2 {[%clk 0:00:32]} 29. Kxb2 {[%clk 0:00:36]}  Rb8+ {[%clk 0:00:32]} 30. Ka1 {[%clk 0:00:36]}  Qc2 {[%clk 0:00:31]} 31. Rd8+ {[%clk 0:00:23]}  Rxd8 {[%clk 0:00:31]} 32. Qc3 {[%clk 0:00:23]}  Qxe4 {[%clk 0:00:29]} 33. f5 {[%clk 0:00:23]}  Bb3 {[%clk 0:00:28]} 34. e6 {[%clk 0:00:20]}  fxe6 {[%clk 0:00:27]} 35. f6 {[%clk 0:00:21]}  gxf6 {[%clk 0:00:26]} 36. Qxf6 {[%clk 0:00:19]}  Qd4+ {[%clk 0:00:26]} 0-1

[Event "December 19 Early 2023"]
[Site "https://www.chess.com"]
[Date "2023.12.19"]
[Round "2"]
[White "Kim, Sergey"]
[Black "Marin Pincheira, Carlos"]
[Result "0-1"]
[Board "154"]
[TimeControl "180+1"]
[WhiteFideId "13700570"]
[BlackFideId "3407543"]
[WhiteElo "2612"]
[BlackElo "2080"]
[WhiteTeam "KAZ"]
[BlackTeam "CHI"]
[WhiteClock "0:00:39"]
[BlackClock "0:00:03"]

1. d4 {[%clk 0:03:00]}  d5 {[%clk 0:02:58]} 2. c4 {[%clk 0:03:00]}  c6 {[%clk 0:02:58]} 3. cxd5 {[%clk 0:03:00]}  cxd5 {[%clk 0:02:57]} 4. Bf4 {[%clk 0:03:00]}  Nc6 {[%clk 0:02:54]} 5. e3 {[%clk 0:03:00]}  Nf6 {[%clk 0:02:54]} 6. Nc3 {[%clk 0:02:58]}  Bf5 {[%clk 0:02:25]} 7. Bb5 {[%clk 0:02:52]}  e6 {[%clk 0:02:20]} 8. Nf3 {[%clk 0:02:51]}  Bd6 {[%clk 0:02:18]} 9. Ne5 {[%clk 0:02:50]}  Bxe5 {[%clk 0:02:17]} 10. dxe5 {[%clk 0:02:50]}  Nd7 {[%clk 0:02:09]} 11. O-O {[%clk 0:02:39]}  O-O {[%clk 0:02:03]} 12. Rc1 {[%clk 0:02:38]}  Ndxe5 {[%clk 0:01:57]} 13. Ne2 {[%clk 0:02:34]}  a6 {[%clk 0:01:48]} 14. Ba4 {[%clk 0:02:33]}  Rc8 {[%clk 0:01:38]} 15. Nd4 {[%clk 0:02:31]}  Bg6 {[%clk 0:01:27]} 16. Nxc6 {[%clk 0:02:28]}  Nxc6 {[%clk 0:01:20]} 17. Qd2 {[%clk 0:02:23]}  b5 {[%clk 0:01:18]} 18. Bd1 {[%clk 0:02:18]}  Qd7 {[%clk 0:00:24]} 19. Bg3 {[%clk 0:02:05]}  Rfd8 {[%clk 0:00:23]} 20. Bh4 {[%clk 0:02:04]}  f6 {[%clk 0:00:22]} 21. Bg4 {[%clk 0:02:02]}  Bf7 {[%clk 0:00:18]} 22. Rfd1 {[%clk 0:01:57]}  Ne5 {[%clk 0:00:17]} 23. Be2 {[%clk 0:01:51]}  Nc4 {[%clk 0:00:16]} 24. Qb4 {[%clk 0:01:49]}  a5 {[%clk 0:00:15]} 25. Qb3 {[%clk 0:01:47]}  b4 {[%clk 0:00:10]} 26. Bxc4 {[%clk 0:01:28]}  dxc4 {[%clk 0:00:09]} 27. Rxd7 {[%clk 0:01:26]}  cxb3 {[%clk 0:00:10]} 28. Rxd8+ {[%clk 0:01:26]}  Rxd8 {[%clk 0:00:09]} 29. axb3 {[%clk 0:01:26]}  e5 {[%clk 0:00:10]} 30. f4 {[%clk 0:01:24]}  exf4 {[%clk 0:00:08]} 31. exf4 {[%clk 0:01:24]}  Bxb3 {[%clk 0:00:09]} 32. Bf2 {[%clk 0:01:15]}  Rd2 {[%clk 0:00:09]} 33. Bb6 {[%clk 0:01:15]}  a4 {[%clk 0:00:07]} 34. Ba5 {[%clk 0:01:11]}  Bd5 {[%clk 0:00:06]} 35. Bxb4 {[%clk 0:01:03]}  Rxg2+ {[%clk 0:00:06]} 36. Kf1 {[%clk 0:01:03]}  Rxh2 {[%clk 0:00:06]} 37. Rc8+ {[%clk 0:01:01]}  Kf7 {[%clk 0:00:05]} 38. Bc3 {[%clk 0:00:59]}  Rc2 {[%clk 0:00:03]} 39. Rc7+ {[%clk 0:00:57]}  Kg6 {[%clk 0:00:03]} 40. Ra7 {[%clk 0:00:57]}  Bb3 {[%clk 0:00:01]} 41. Ra5 {[%clk 0:00:52]}  h5 {[%clk 0:00:02]} 42. Kg1 {[%clk 0:00:51]}  h4 {[%clk 0:00:02]} 43. Be1 {[%clk 0:00:42]}  h3 {[%clk 0:00:02]} 44. Bg3 {[%clk 0:00:41]}  Rg2+ {[%clk 0:00:02]} 45. Kf1 {[%clk 0:00:41]}  Rxg3 {[%clk 0:00:03]} 46. Kf2 {[%clk 0:00:41]}  Rg2+ {[%clk 0:00:03]} 47. Kf3 {[%clk 0:00:42]}  Rxb2 {[%clk 0:00:04]} 48. f5+ {[%clk 0:00:42]}  Kg5 {[%clk 0:00:03]} 49. Kg3 {[%clk 0:00:39]}  h2 {[%clk 0:00:03]} 0-1

[Event "December 19 Early 2023"]
[Site "https://www.chess.com"]
[Date "2023.12.19"]
[Round "2"]
[White "Vlassov, Nikolai"]
[Black "Kolmagorov, Alexey"]
[Result "1-0"]
[Board "156"]
[TimeControl "180+1"]
[WhiteFideId "4103360"]
[BlackFideId "34129402"]
[WhiteElo "2351"]
[BlackElo "1989"]
[WhiteTeam "FID"]
[BlackTeam "RUS"]
[WhiteClock "0:02:31"]
[BlackClock "0:00:04"]

1. e4 {[%clk 0:03:00]}  c5 {[%clk 0:02:58]} 2. c3 {[%clk 0:02:54]}  Nf6 {[%clk 0:02:51]} 3. e5 {[%clk 0:02:54]}  Nd5 {[%clk 0:02:51]} 4. d4 {[%clk 0:02:54]}  cxd4 {[%clk 0:02:49]} 5. cxd4 {[%clk 0:02:54]}  d6 {[%clk 0:02:50]} 6. Bc4 {[%clk 0:02:53]}  Nb6 {[%clk 0:02:47]} 7. Bb3 {[%clk 0:02:52]}  g6 {[%clk 0:02:47]} 8. e6 {[%clk 0:02:52]}  fxe6 {[%clk 0:02:18]} 9. h4 {[%clk 0:02:51]}  Bg7 {[%clk 0:01:40]} 10. h5 {[%clk 0:02:47]}  Nc6 {[%clk 0:01:06]} 11. Nf3 {[%clk 0:02:45]}  a5 {[%clk 0:00:36]} 12. Nc3 {[%clk 0:02:43]}  Bd7 {[%clk 0:00:27]} 13. hxg6 {[%clk 0:02:37]}  hxg6 {[%clk 0:00:27]} 14. Rxh8+ {[%clk 0:02:37]}  Bxh8 {[%clk 0:00:28]} 15. Qd3 {[%clk 0:02:37]}  Kf7 {[%clk 0:00:13]} 16. Ng5+ {[%clk 0:02:37]}  Kg7 {[%clk 0:00:13]} 17. Bxe6 {[%clk 0:02:31]}  Qf8 {[%clk 0:00:04]} 1-0

[Event "December 19 Early 2023"]
[Site "https://www.chess.com"]
[Date "2023.12.19"]
[Round "2"]
[White "Manukian, Artak"]
[Black "Mesquita, Eduardo Barbosa"]
[Result "1-0"]
[Board "157"]
[TimeControl "180+1"]
[WhiteFideId "13301373"]
[BlackFideId "22757163"]
[WhiteElo "2030"]
[BlackElo "1953"]
[WhiteTeam "ARM"]
[BlackTeam "BRA"]
[WhiteClock "0:00:32"]
[BlackClock "0:00:00"]

1. e4 {[%clk 0:03:00]}  c5 {[%clk 0:03:00]} 2. Nf3 {[%clk 0:03:00]}  d6 {[%clk 0:03:00]} 3. Bb5+ {[%clk 0:03:00]}  Bd7 {[%clk 0:02:54]} 4. Bxd7+ {[%clk 0:02:59]}  Qxd7 {[%clk 0:02:54]} 5. c4 {[%clk 0:03:00]}  Nc6 {[%clk 0:02:54]} 6. Nc3 {[%clk 0:03:01]}  g6 {[%clk 0:02:55]} 7. d4 {[%clk 0:03:01]}  cxd4 {[%clk 0:02:56]} 8. Nxd4 {[%clk 0:03:01]}  Bg7 {[%clk 0:02:57]} 9. Be3 {[%clk 0:03:02]}  Nf6 {[%clk 0:02:57]} 10. f3 {[%clk 0:03:02]}  O-O {[%clk 0:02:58]} 11. O-O {[%clk 0:03:01]}  a6 {[%clk 0:02:58]} 12. a4 {[%clk 0:03:01]}  Rac8 {[%clk 0:02:57]} 13. b3 {[%clk 0:03:01]}  Rfd8 {[%clk 0:02:56]} 14. Qd2 {[%clk 0:03:01]}  h5 {[%clk 0:02:55]} 15. Rfd1 {[%clk 0:03:01]}  Kh7 {[%clk 0:02:56]} 16. Rac1 {[%clk 0:03:00]}  Ne5 {[%clk 0:02:52]} 17. a5 {[%clk 0:02:52]}  Nc6 {[%clk 0:02:47]} 18. Ra1 {[%clk 0:02:43]}  Qc7 {[%clk 0:02:41]} 19. Nxc6 {[%clk 0:02:42]}  bxc6 {[%clk 0:02:41]} 20. Bb6 {[%clk 0:02:42]}  Qb7 {[%clk 0:02:38]} 21. Bxd8 {[%clk 0:02:42]}  Rxd8 {[%clk 0:02:38]} 22. Qc2 {[%clk 0:02:36]}  Nd7 {[%clk 0:02:38]} 23. Rab1 {[%clk 0:02:29]}  h4 {[%clk 0:02:35]} 24. Na4 {[%clk 0:02:24]}  h3 {[%clk 0:02:31]} 25. gxh3 {[%clk 0:02:17]}  Ne5 {[%clk 0:02:20]} 26. Kg2 {[%clk 0:02:16]}  g5 {[%clk 0:02:18]} 27. h4 {[%clk 0:02:09]}  Bf6 {[%clk 0:02:01]} 28. hxg5 {[%clk 0:02:04]}  Bxg5 {[%clk 0:02:00]} 29. Rf1 {[%clk 0:02:03]}  Rg8 {[%clk 0:02:00]} 30. Kh1 {[%clk 0:02:04]}  Bf4 {[%clk 0:01:56]} 31. Nc3 {[%clk 0:01:54]}  Qd7 {[%clk 0:01:47]} 32. Ne2 {[%clk 0:01:52]}  Be3 {[%clk 0:01:42]} 33. Ng3 {[%clk 0:01:47]}  Ng6 {[%clk 0:01:24]} 34. Nf5 {[%clk 0:01:43]}  Bf4 {[%clk 0:01:11]} 35. Rg1 {[%clk 0:01:41]}  e6 {[%clk 0:01:11]} 36. Nd4 {[%clk 0:01:38]}  Be3 {[%clk 0:01:03]} 37. Rgd1 {[%clk 0:01:30]}  Nf4 {[%clk 0:00:44]} 38. e5+ {[%clk 0:01:20]}  Kh8 {[%clk 0:00:38]} 39. Qe4 {[%clk 0:01:19]}  Ng2 {[%clk 0:00:09]} 40. Nc2 {[%clk 0:01:14]}  Bc5 {[%clk 0:00:04]} 41. exd6 {[%clk 0:01:07]}  f6 {[%clk 0:00:04]} 42. Rd2 {[%clk 0:01:03]}  Qg7 {[%clk 0:00:05]} 43. d7 {[%clk 0:00:53]}  f5 {[%clk 0:00:04]} 44. Qxe6 {[%clk 0:00:39]}  Nf4 {[%clk 0:00:02]} 45. Qxg8+ {[%clk 0:00:34]}  Kxg8 {[%clk 0:00:01]} 46. d8=Q+ {[%clk 0:00:34]}  Kh7 {[%clk 0:00:02]} 47. Qh4+ {[%clk 0:00:32]}  Kg8 {[%clk 0:00:02]} 48. Qxf4 {[%clk 0:00:32]}  Kf7 {[%clk 0:00:00]} 49. Qxf5+ {[%clk 0:00:32]} 1-0